[Event "*** SCC Grand Prix: Titled Tuesday Blitz"]
[Site "Chess.com"]
[Date "2020.10.06"]
[Round "2"]
[White "Gabix_94"]
[Black "blitzking1729"]
[Result "1-0"]
[WhiteElo "2806"]
[BlackElo "2543"]
[TimeControl "180+1"]
[EndTime "10:17:41 PDT"]
[Termination "Gabix_94 won by resignation"]

1. c4 {[%clk 0:03:00.9]} 1... e5 {[%clk 0:02:59.2]} 2. Nc3 {[%clk 0:03:01.3]}
2... d6 {[%clk 0:02:59.4]} 3. g3 {[%clk 0:03:01.5]} 3... f5 {[%clk 0:02:59.1]}
4. Bg2 {[%clk 0:03:02]} 4... Nf6 {[%clk 0:02:59.7]} 5. d3 {[%clk 0:03:02.5]}
5... Be7 {[%clk 0:03:00.3]} 6. Nh3 {[%clk 0:02:57]} 6... O-O {[%clk 0:02:57.2]}
7. f4 {[%clk 0:02:57]} 7... Nc6 {[%clk 0:02:53.9]} 8. O-O {[%clk 0:02:57.3]}
8... e4 {[%clk 0:02:51.6]} 9. Nf2 {[%clk 0:02:53.8]} 9... Be6 {[%clk 0:02:47.7]}
10. dxe4 {[%clk 0:02:43.5]} 10... fxe4 {[%clk 0:02:45.9]} 11. Nfxe4 {[%clk
0:02:41]} 11... Bxc4 {[%clk 0:02:41.7]} 12. Ng5 {[%clk 0:02:33.4]} 12... Kh8
{[%clk 0:02:26.1]} 13. b3 {[%clk 0:02:30.2]} 13... Bg8 {[%clk 0:02:20.3]} 14.
Bb2 {[%clk 0:02:30.6]} 14... d5 {[%clk 0:02:18.1]} 15. e4 {[%clk 0:02:26.1]}
15... d4 {[%clk 0:02:04.1]} 16. Nd5 {[%clk 0:02:10.3]} 16... Nxd5 {[%clk
0:01:54.4]} 17. exd5 {[%clk 0:02:07.5]} 17... Bxd5 {[%clk 0:01:54.6]} 18. Nxh7
{[%clk 0:01:58.6]} 18... Bxg2 {[%clk 0:01:39.1]} 19. Nxf8 {[%clk 0:01:56.6]}
19... Bxf1 {[%clk 0:01:39.2]} 20. Ng6+ {[%clk 0:01:52.6]} 20... Kg8 {[%clk
0:01:36.9]} 21. Qxf1 {[%clk 0:01:50.3]} 21... Bf6 {[%clk 0:01:35.2]} 22. Qh3
{[%clk 0:01:32.2]} 22... Qe8 {[%clk 0:01:26]} 23. Qh5 {[%clk 0:01:28.2]} 23...
Qe3+ {[%clk 0:01:24.1]} 24. Kf1 {[%clk 0:01:23.1]} 24... Qd3+ {[%clk 0:01:18.7]}
25. Kg2 {[%clk 0:01:19.5]} 25... Qc2+ {[%clk 0:00:57.6]} 26. Kh3 {[%clk
0:01:17.3]} 26... Re8 {[%clk 0:00:48.4]} 27. Qd5+ {[%clk 0:01:10.6]} 27... Kh7
{[%clk 0:00:46.6]} 28. Qh5+ {[%clk 0:01:10.9]} 28... Kg8 {[%clk 0:00:46.5]} 29.
Rf1 {[%clk 0:00:48.5]} 29... Qe2 {[%clk 0:00:31]} 30. Rf3 {[%clk 0:00:43.4]}
30... Qe6+ {[%clk 0:00:26.8]} 31. f5 {[%clk 0:00:41.6]} 31... Qe4 {[%clk
0:00:25.7]} 32. Qh8+ {[%clk 0:00:38.8]} 32... Kf7 {[%clk 0:00:25.3]} 33. Qh5
{[%clk 0:00:39.7]} 33... Kg8 {[%clk 0:00:25.2]} 34. Ba3 {[%clk 0:00:36.8]} 34...
Ne5 {[%clk 0:00:22.3]} 35. Qh8+ {[%clk 0:00:32.6]} 35... Kf7 {[%clk 0:00:22]}
36. Qh5 {[%clk 0:00:33.1]} 36... Nxg6 {[%clk 0:00:21.5]} 37. fxg6+ {[%clk
0:00:27.7]} 37... Qxg6 {[%clk 0:00:20.5]} 38. Qd5+ {[%clk 0:00:27.4]} 38... Re6
{[%clk 0:00:17.3]} 39. Qd7+ {[%clk 0:00:27.7]} 39... Re7 {[%clk 0:00:15.8]} 40.
Qxe7+ {[%clk 0:00:27.6]} 40... Kg8 {[%clk 0:00:11.6]} 41. Qe6+ {[%clk
0:00:27.4]} 41... Kh7 {[%clk 0:00:11.4]} 42. Qf5 {[%clk 0:00:27.5]} 1-0

[Event "*** SCC Grand Prix: Titled Tuesday Blitz"]
[Site "Chess.com"]
[Date "2020.10.06"]
[Round "2"]
[White "gmpeter008"]
[Black "AlexeiShirov"]
[Result "0-1"]
[WhiteElo "2362"]
[BlackElo "2836"]
[TimeControl "180+1"]
[EndTime "10:17:42 PDT"]
[Termination "AlexeiShirov won on time"]

1. d4 {[%clk 0:03:00.9]} 1... d5 {[%clk 0:02:58.9]} 2. Nf3 {[%clk 0:03:00.6]}
2... Nf6 {[%clk 0:02:56.8]} 3. Bf4 {[%clk 0:03:00.7]} 3... c5 {[%clk 0:02:55.8]}
4. e3 {[%clk 0:03:00.7]} 4... Nc6 {[%clk 0:02:54.4]} 5. Nbd2 {[%clk 0:03:00.9]}
5... Qb6 {[%clk 0:02:53.5]} 6. dxc5 {[%clk 0:03:01]} 6... Qxb2 {[%clk
0:02:53.3]} 7. c4 {[%clk 0:03:01.2]} 7... e6 {[%clk 0:02:44.7]} 8. Qc1 {[%clk
0:02:25.2]} 8... Qxc1+ {[%clk 0:02:37.9]} 9. Rxc1 {[%clk 0:02:24]} 9... Bd7
{[%clk 0:02:23.2]} 10. Nb3 {[%clk 0:02:01]} 10... Rc8 {[%clk 0:02:13.2]} 11. Bg5
{[%clk 0:01:17.4]} 11... Ne4 {[%clk 0:02:11.3]} 12. cxd5 {[%clk 0:01:16.6]}
12... exd5 {[%clk 0:02:10.3]} 13. Bh4 {[%clk 0:01:00.3]} 13... Nb4 {[%clk
0:02:06.2]} 14. a3 {[%clk 0:00:59.6]} 14... Nxc5 {[%clk 0:01:56.8]} 15. axb4
{[%clk 0:00:28.4]} 15... Nxb3 {[%clk 0:01:55.6]} 16. Rxc8+ {[%clk 0:00:29.3]}
16... Bxc8 {[%clk 0:01:55.3]} 17. Bb5+ {[%clk 0:00:30.2]} 17... Bd7 {[%clk
0:01:52.9]} 18. Bxd7+ {[%clk 0:00:31.1]} 18... Kxd7 {[%clk 0:01:52.3]} 19. Ke2
{[%clk 0:00:32]} 19... a5 {[%clk 0:01:47.9]} 20. bxa5 {[%clk 0:00:28.5]} 20...
Nxa5 {[%clk 0:01:46.6]} 21. Ra1 {[%clk 0:00:27.2]} 21... b6 {[%clk 0:01:39.2]}
22. Ne5+ {[%clk 0:00:23.5]} 22... Ke6 {[%clk 0:01:37.6]} 23. Nf3 {[%clk
0:00:20.6]} 23... Bc5 {[%clk 0:01:36.3]} 24. Ng5+ {[%clk 0:00:19.7]} 24... Kd7
{[%clk 0:01:30.3]} 25. Nxf7 {[%clk 0:00:19.6]} 25... Re8 {[%clk 0:01:29.9]} 26.
Ng5 {[%clk 0:00:19.3]} 26... d4 {[%clk 0:01:23.9]} 27. Rd1 {[%clk 0:00:12.7]}
27... Kc6 {[%clk 0:01:21]} 28. Rd3 {[%clk 0:00:11.4]} 28... Nc4 {[%clk
0:01:19.1]} 29. Nf3 {[%clk 0:00:10.6]} 29... dxe3 {[%clk 0:01:17.8]} 30. fxe3
{[%clk 0:00:11]} 30... Nxe3 {[%clk 0:01:16.3]} 31. Kd2 {[%clk 0:00:11.5]} 31...
Nxg2 {[%clk 0:01:14.7]} 32. Bg3 {[%clk 0:00:11.9]} 32... Re4 {[%clk 0:01:09.5]}
33. Ne5+ {[%clk 0:00:11.9]} 33... Kb5 {[%clk 0:01:09.5]} 34. Rd7 {[%clk
0:00:11.7]} 34... Rd4+ {[%clk 0:01:07.4]} 35. Rxd4 {[%clk 0:00:11.2]} 35... Bxd4
{[%clk 0:01:07.3]} 36. Nf3 {[%clk 0:00:11.2]} 36... Kc4 {[%clk 0:01:06.1]} 37.
Ke2 {[%clk 0:00:07.7]} 37... Bc5 {[%clk 0:01:02.1]} 38. Ng5 {[%clk 0:00:07.2]}
38... Ne3 {[%clk 0:00:57.6]} 39. Nxh7 {[%clk 0:00:07.5]} 39... Nf5 {[%clk
0:00:57]} 40. Bf4 {[%clk 0:00:08]} 40... b5 {[%clk 0:00:55.4]} 41. Ng5 {[%clk
0:00:07.3]} 41... Nd4+ {[%clk 0:00:54.3]} 42. Kd1 {[%clk 0:00:06.3]} 42... b4
{[%clk 0:00:53.9]} 43. Be5 {[%clk 0:00:06.8]} 43... b3 {[%clk 0:00:51.8]} 44.
Bxd4 {[%clk 0:00:05.1]} 44... Bxd4 {[%clk 0:00:49.8]} 45. Ne6 {[%clk 0:00:05.7]}
45... Be3 {[%clk 0:00:45.7]} 0-1

[Event "*** SCC Grand Prix: Titled Tuesday Blitz"]
[Site "Chess.com"]
[Date "2020.10.06"]
[Round "2"]
[White "Brave_spirit12"]
[Black "ChessSkool"]
[Result "1-0"]
[WhiteElo "2489"]
[BlackElo "2682"]
[TimeControl "180+1"]
[EndTime "10:17:44 PDT"]
[Termination "Brave_spirit12 won on time"]

1. e4 {[%clk 0:03:00.6]} 1... e5 {[%clk 0:02:58.2]} 2. Nf3 {[%clk 0:02:59.4]}
2... Nc6 {[%clk 0:02:56.5]} 3. Bc4 {[%clk 0:02:59.6]} 3... Bc5 {[%clk
0:02:53.8]} 4. O-O {[%clk 0:02:56.7]} 4... Nf6 {[%clk 0:02:51.6]} 5. d4 {[%clk
0:02:53.3]} 5... Bxd4 {[%clk 0:02:38.3]} 6. Nxd4 {[%clk 0:02:52.5]} 6... Nxd4
{[%clk 0:02:39.2]} 7. f4 {[%clk 0:02:53]} 7... d6 {[%clk 0:02:33.7]} 8. fxe5
{[%clk 0:02:52.7]} 8... dxe5 {[%clk 0:02:34.6]} 9. Bg5 {[%clk 0:02:52.9]} 9...
Qe7 {[%clk 0:02:28.8]} 10. Na3 {[%clk 0:02:49.6]} 10... Rg8 {[%clk 0:02:24.5]}
11. c3 {[%clk 0:02:46.5]} 11... Ne6 {[%clk 0:02:19.7]} 12. Bxf6 {[%clk
0:02:01.6]} 12... gxf6 {[%clk 0:02:20.6]} 13. Qf3 {[%clk 0:02:01.4]} 13... Rg6
{[%clk 0:02:06]} 14. Kh1 {[%clk 0:01:52.3]} 14... Bd7 {[%clk 0:02:03.3]} 15. Qe3
{[%clk 0:01:48.1]} 15... a6 {[%clk 0:01:46]} 16. Rad1 {[%clk 0:01:45]} 16... Rd8
{[%clk 0:01:07.1]} 17. Nc2 {[%clk 0:01:34.9]} 17... Bc6 {[%clk 0:00:57]} 18. Nb4
{[%clk 0:01:29.1]} 18... Qc5 {[%clk 0:00:41.7]} 19. Qxc5 {[%clk 0:01:14.2]}
19... Nxc5 {[%clk 0:00:41.4]} 20. Bxf7+ {[%clk 0:01:14.8]} 20... Kxf7 {[%clk
0:00:37]} 21. Rxd8 {[%clk 0:01:14.5]} 21... Bxe4 {[%clk 0:00:36.3]} 22. Rf2
{[%clk 0:01:11.9]} 22... a5 {[%clk 0:00:18.9]} 23. Nd5 {[%clk 0:00:37.9]} 23...
Nd3 {[%clk 0:00:19]} 24. Rd2 {[%clk 0:00:37.4]} 24... c6 {[%clk 0:00:18.9]} 25.
Ne3 {[%clk 0:00:34.3]} 25... Nf4 {[%clk 0:00:18.4]} 26. R8d7+ {[%clk 0:00:28.3]}
26... Kg8 {[%clk 0:00:08.5]} 27. Rxb7 {[%clk 0:00:27]} 27... Nd3 {[%clk
0:00:03.8]} 28. Rd7 {[%clk 0:00:21.9]} 28... Nf4 {[%clk 0:00:02.9]} 29. Kg1
{[%clk 0:00:17.8]} 29... h5 {[%clk 0:00:01.7]} 30. Ra7 {[%clk 0:00:13.5]} 30...
Nd3 {[%clk 0:00:01]} 31. Kf1 {[%clk 0:00:13.2]} 31... f5 {[%clk 0:00:01.3]} 32.
Nc4 {[%clk 0:00:09.9]} 32... f4 {[%clk 0:00:01.1]} 33. Nxe5 {[%clk 0:00:10]} 1-0

[Event "*** SCC Grand Prix: Titled Tuesday Blitz"]
[Site "Chess.com"]
[Date "2020.10.06"]
[Round "2"]
[White "Rakesh"]
[Black "barriochess"]
[Result "1-0"]
[WhiteElo "2492"]
[BlackElo "2306"]
[TimeControl "180+1"]
[EndTime "10:17:44 PDT"]
[Termination "Rakesh won by resignation"]

1. e4 {[%clk 0:03:00.9]} 1... d6 {[%clk 0:02:59]} 2. d4 {[%clk 0:02:59.4]} 2...
Nf6 {[%clk 0:02:59.3]} 3. Nc3 {[%clk 0:02:41.8]} 3... g6 {[%clk 0:02:58.7]} 4.
Be3 {[%clk 0:02:22.6]} 4... c6 {[%clk 0:02:58.1]} 5. f3 {[%clk 0:02:19.1]} 5...
Nbd7 {[%clk 0:02:57.4]} 6. a4 {[%clk 0:02:16.5]} 6... e5 {[%clk 0:02:53.7]} 7.
Qd2 {[%clk 0:02:12.6]} 7... Qc7 {[%clk 0:02:42.8]} 8. g4 {[%clk 0:01:48.4]} 8...
b6 {[%clk 0:02:31.1]} 9. h4 {[%clk 0:01:41.7]} 9... Bb7 {[%clk 0:02:28.8]} 10.
h5 {[%clk 0:01:19.2]} 10... Rg8 {[%clk 0:02:25.3]} 11. hxg6 {[%clk 0:01:18.2]}
11... hxg6 {[%clk 0:02:25.5]} 12. Nge2 {[%clk 0:01:18.8]} 12... a6 {[%clk
0:02:21]} 13. O-O-O {[%clk 0:01:17]} 13... b5 {[%clk 0:02:21]} 14. Ng3 {[%clk
0:01:14.1]} 14... Nb6 {[%clk 0:02:11.1]} 15. g5 {[%clk 0:01:07]} 15... Nfd7
{[%clk 0:02:10.2]} 16. dxe5 {[%clk 0:01:07]} 16... dxe5 {[%clk 0:02:07.8]} 17.
f4 {[%clk 0:00:55.1]} 17... O-O-O {[%clk 0:02:03]} 18. Rh7 {[%clk 0:00:22.8]}
18... b4 {[%clk 0:01:53.4]} 19. Nb1 {[%clk 0:00:21]} 19... Rg7 {[%clk
0:01:34.3]} 20. Rxg7 {[%clk 0:00:19.8]} 20... Bxg7 {[%clk 0:01:35.2]} 21. f5
{[%clk 0:00:20.7]} 21... Bf8 {[%clk 0:01:34]} 22. a5 {[%clk 0:00:19.9]} 22...
Na4 {[%clk 0:01:32.5]} 23. fxg6 {[%clk 0:00:20]} 23... fxg6 {[%clk 0:01:31.7]}
24. Bh3 {[%clk 0:00:20.5]} 24... Bc5 {[%clk 0:01:23.2]} 25. b3 {[%clk 0:00:18]}
25... Bxe3 {[%clk 0:01:23]} 26. Qxe3 {[%clk 0:00:18.9]} 26... Nc3 {[%clk
0:01:17.9]} 27. Nxc3 {[%clk 0:00:19.3]} 27... bxc3 {[%clk 0:01:18.2]} 28. Qxc3
{[%clk 0:00:19.8]} 28... Kb8 {[%clk 0:01:15.8]} 29. Qd2 {[%clk 0:00:15.5]} 29...
Bc8 {[%clk 0:01:13.8]} 30. Kb1 {[%clk 0:00:13.7]} 30... Kb7 {[%clk 0:00:47.3]}
31. Nf1 {[%clk 0:00:13.5]} 31... Rf8 {[%clk 0:00:35.5]} 32. Bxd7 {[%clk
0:00:12.4]} 32... Bxd7 {[%clk 0:00:35.7]} 33. Qxd7 {[%clk 0:00:09.8]} 33... Qxd7
{[%clk 0:00:32.7]} 34. Rxd7+ {[%clk 0:00:10.7]} 34... Kc8 {[%clk 0:00:33.5]} 35.
Rd1 {[%clk 0:00:11]} 35... Rf4 {[%clk 0:00:33.6]} 36. Ne3 {[%clk 0:00:11.2]}
36... Rxe4 {[%clk 0:00:33.6]} 37. Nc4 {[%clk 0:00:11.6]} 37... Re2 {[%clk
0:00:31.1]} 38. Rd6 {[%clk 0:00:10.9]} 38... Kc7 {[%clk 0:00:30.4]} 39. Rxg6
{[%clk 0:00:11.4]} 39... e4 {[%clk 0:00:31.3]} 40. Re6 {[%clk 0:00:11.6]} 40...
Rg2 {[%clk 0:00:30.5]} 41. g6 {[%clk 0:00:11.9]} 41... Kd7 {[%clk 0:00:30.2]}
42. Rd6+ {[%clk 0:00:12]} 42... Kc7 {[%clk 0:00:30.7]} 43. Re6 {[%clk
0:00:12.3]} 43... Kd7 {[%clk 0:00:31.1]} 44. Rxe4 {[%clk 0:00:12.6]} 44... Rxg6
{[%clk 0:00:30.6]} 45. Ne5+ {[%clk 0:00:13]} 1-0

[Event "*** SCC Grand Prix: Titled Tuesday Blitz"]
[Site "Chess.com"]
[Date "2020.10.06"]
[Round "2"]
[White "The_Machine04"]
[Black "Sergey85Rodchenkov"]
[Result "1-0"]
[WhiteElo "2308"]
[BlackElo "2458"]
[TimeControl "180+1"]
[EndTime "10:17:47 PDT"]
[Termination "The_Machine04 won by checkmate"]

1. d4 {[%clk 0:03:00.9]} 1... Nf6 {[%clk 0:02:59.2]} 2. Bg5 {[%clk 0:03:00.3]}
2... c5 {[%clk 0:02:58.7]} 3. Bxf6 {[%clk 0:02:58.8]} 3... gxf6 {[%clk
0:02:57.6]} 4. d5 {[%clk 0:02:56.2]} 4... d6 {[%clk 0:02:56.1]} 5. c4 {[%clk
0:02:54.9]} 5... f5 {[%clk 0:02:56]} 6. Nc3 {[%clk 0:02:53.1]} 6... Bg7 {[%clk
0:02:56.1]} 7. Qc2 {[%clk 0:02:52.7]} 7... e6 {[%clk 0:02:53.4]} 8. e3 {[%clk
0:02:50.9]} 8... Na6 {[%clk 0:02:52.5]} 9. a3 {[%clk 0:02:47.9]} 9... Nc7 {[%clk
0:02:52.2]} 10. Rd1 {[%clk 0:02:41.3]} 10... Qe7 {[%clk 0:02:50.1]} 11. Nh3
{[%clk 0:02:36.7]} 11... O-O {[%clk 0:02:47.1]} 12. Be2 {[%clk 0:02:35.8]} 12...
a6 {[%clk 0:02:47.1]} 13. O-O {[%clk 0:02:31.1]} 13... Rb8 {[%clk 0:02:47.2]}
14. b4 {[%clk 0:02:15.5]} 14... b6 {[%clk 0:02:38]} 15. Nf4 {[%clk 0:02:08.2]}
15... Kh8 {[%clk 0:02:35.2]} 16. Kh1 {[%clk 0:01:53.6]} 16... Rg8 {[%clk
0:02:34.3]} 17. Rb1 {[%clk 0:01:45.4]} 17... Bd7 {[%clk 0:02:27]} 18. Rfd1
{[%clk 0:01:02.6]} 18... e5 {[%clk 0:02:07.5]} 19. Nh5 {[%clk 0:00:51.5]} 19...
Bh6 {[%clk 0:02:06.8]} 20. bxc5 {[%clk 0:00:50.2]} 20... bxc5 {[%clk 0:02:06.2]}
21. Rxb8 {[%clk 0:00:49.3]} 21... Rxb8 {[%clk 0:02:06]} 22. Rb1 {[%clk
0:00:49.7]} 22... Rg8 {[%clk 0:02:01.9]} 23. Rb7 {[%clk 0:00:36.3]} 23... Bc8
{[%clk 0:02:01.9]} 24. Ra7 {[%clk 0:00:28.5]} 24... Qg5 {[%clk 0:01:26.7]} 25.
g3 {[%clk 0:00:21]} 25... Ne8 {[%clk 0:01:24.4]} 26. Rxf7 {[%clk 0:00:18.8]}
26... Ng7 {[%clk 0:01:22.9]} 27. Nxg7 {[%clk 0:00:18.3]} 27... Bxg7 {[%clk
0:01:22.6]} 28. Bd3 {[%clk 0:00:16.3]} 28... e4 {[%clk 0:01:22]} 29. Be2 {[%clk
0:00:14.6]} 29... Qg6 {[%clk 0:01:22]} 30. Rc7 {[%clk 0:00:13.8]} 30... Be5
{[%clk 0:01:21.7]} 31. Bf1 {[%clk 0:00:11.9]} 31... Qe8 {[%clk 0:01:15.7]} 32.
Ne2 {[%clk 0:00:10.9]} 32... Qd8 {[%clk 0:01:15.3]} 33. Rf7 {[%clk 0:00:09.3]}
33... Qa5 {[%clk 0:01:13]} 34. Qd1 {[%clk 0:00:07.4]} 34... Qxa3 {[%clk
0:01:12]} 35. Nf4 {[%clk 0:00:07]} 35... Qb2 {[%clk 0:01:07.5]} 36. Qh5 {[%clk
0:00:06]} 36... Rg7 {[%clk 0:00:59.5]} 37. Rf8+ {[%clk 0:00:06.2]} 37... Rg8
{[%clk 0:00:59.7]} 38. Rxg8+ {[%clk 0:00:06.5]} 38... Kxg8 {[%clk 0:00:59.8]}
39. Qe8+ {[%clk 0:00:06.2]} 39... Kg7 {[%clk 0:00:59.6]} 40. Nh5+ {[%clk
0:00:04.5]} 40... Kh6 {[%clk 0:00:57.7]} 41. Kg1 {[%clk 0:00:04.7]} 41... Qb7
{[%clk 0:00:53.2]} 42. Be2 {[%clk 0:00:03.8]} 42... Qd7 {[%clk 0:00:51.3]} 43.
Qf8+ {[%clk 0:00:04.2]} 43... Kg6 {[%clk 0:00:45.5]} 44. Qg8+ {[%clk 0:00:04.2]}
44... Kh6 {[%clk 0:00:44.3]} 45. h4 {[%clk 0:00:04.2]} 45... a5 {[%clk 0:00:37]}
46. Qg5# {[%clk 0:00:03.9]} 1-0

[Event "*** SCC Grand Prix: Titled Tuesday Blitz"]
[Site "Chess.com"]
[Date "2020.10.06"]
[Round "2"]
[White "Smile2005"]
[Black "mr65"]
[Result "1-0"]
[WhiteElo "2406"]
[BlackElo "2156"]
[TimeControl "180+1"]
[EndTime "10:17:53 PDT"]
[Termination "Smile2005 won by resignation"]

1. Nf3 {[%clk 0:02:59.7]} 1... Nf6 {[%clk 0:02:58.9]} 2. g3 {[%clk 0:03:00.6]}
2... g6 {[%clk 0:02:58.7]} 3. Bg2 {[%clk 0:03:01.5]} 3... Bg7 {[%clk 0:02:58.6]}
4. O-O {[%clk 0:03:02.4]} 4... O-O {[%clk 0:02:58.1]} 5. d3 {[%clk 0:03:02.8]}
5... d6 {[%clk 0:02:56.7]} 6. Nc3 {[%clk 0:03:03.2]} 6... e5 {[%clk 0:02:55.8]}
7. a3 {[%clk 0:03:01.5]} 7... Nc6 {[%clk 0:02:55.2]} 8. b4 {[%clk 0:03:01]} 8...
a5 {[%clk 0:02:48.8]} 9. b5 {[%clk 0:03:00.5]} 9... Ne7 {[%clk 0:02:44.3]} 10.
e4 {[%clk 0:02:58.9]} 10... b6 {[%clk 0:02:42.3]} 11. a4 {[%clk 0:02:58.8]}
11... Bb7 {[%clk 0:02:41.6]} 12. Ne2 {[%clk 0:02:56.4]} 12... Nd7 {[%clk
0:02:40.7]} 13. c4 {[%clk 0:02:56.4]} 13... f5 {[%clk 0:02:38.1]} 14. Ng5 {[%clk
0:02:55.2]} 14... Nc5 {[%clk 0:02:35.8]} 15. Ba3 {[%clk 0:02:51.4]} 15... h6
{[%clk 0:02:32.7]} 16. Bxc5 {[%clk 0:02:51.2]} 16... hxg5 {[%clk 0:02:32.2]} 17.
Ba3 {[%clk 0:02:49.4]} 17... f4 {[%clk 0:02:31.6]} 18. f3 {[%clk 0:02:47.4]}
18... g4 {[%clk 0:02:18.2]} 19. fxg4 {[%clk 0:02:42.1]} 19... g5 {[%clk
0:02:17]} 20. Nc3 {[%clk 0:02:38.3]} 20... Ng6 {[%clk 0:02:14.5]} 21. Nd5 {[%clk
0:02:37.9]} 21... Bxd5 {[%clk 0:02:13.1]} 22. exd5 {[%clk 0:02:37.3]} 22... e4
{[%clk 0:02:04.3]} 23. Bxe4 {[%clk 0:02:07.1]} 23... Bxa1 {[%clk 0:01:57.1]} 24.
Qxa1 {[%clk 0:02:07.4]} 24... Ne5 {[%clk 0:01:53.3]} 25. Bf5 {[%clk 0:01:48.2]}
25... fxg3 {[%clk 0:01:46.1]} 26. hxg3 {[%clk 0:01:47.8]} 26... Kg7 {[%clk
0:01:29.4]} 27. Bb2 {[%clk 0:01:08]} 27... Qf6 {[%clk 0:01:16.6]} 28. Qc1 {[%clk
0:01:03]} 28... Rae8 {[%clk 0:01:01.3]} 29. Qd2 {[%clk 0:00:51.8]} 29... Re7
{[%clk 0:00:52.4]} 30. Rf2 {[%clk 0:00:45.4]} 30... Rh8 {[%clk 0:00:51]} 31. Bd4
{[%clk 0:00:44.1]} 31... Qh6 {[%clk 0:00:42.3]} 32. Kf1 {[%clk 0:00:28.9]} 32...
Qh1+ {[%clk 0:00:37.4]} 33. Ke2 {[%clk 0:00:29]} 33... Qh6 {[%clk 0:00:15.9]}
34. Be6 {[%clk 0:00:28.6]} 34... Rf8 {[%clk 0:00:12.8]} 35. Bxe5+ {[%clk
0:00:24.6]} 35... dxe5 {[%clk 0:00:11.5]} 36. Rxf8 {[%clk 0:00:24.6]} 36... Kxf8
{[%clk 0:00:10.6]} 37. Qe3 {[%clk 0:00:24.3]} 37... Rxe6 {[%clk 0:00:10]} 38.
dxe6 {[%clk 0:00:24.1]} 38... Qxe6 {[%clk 0:00:09.7]} 39. Qxg5 {[%clk
0:00:24.1]} 39... e4 {[%clk 0:00:09.7]} 40. Qf5+ {[%clk 0:00:23.9]} 40... Qxf5
{[%clk 0:00:09.7]} 41. gxf5 {[%clk 0:00:24.8]} 41... exd3+ {[%clk 0:00:09.8]}
42. Kxd3 {[%clk 0:00:25.2]} 1-0

[Event "*** SCC Grand Prix: Titled Tuesday Blitz"]
[Site "Chess.com"]
[Date "2020.10.06"]
[Round "2"]
[White "Onischuk_V"]
[Black "UCantHandleDenker"]
[Result "1-0"]
[WhiteElo "2859"]
[BlackElo "2563"]
[TimeControl "180+1"]
[EndTime "10:17:55 PDT"]
[Termination "Onischuk_V won by resignation"]

1. e4 {[%clk 0:02:59]} 1... d6 {[%clk 0:03:00]} 2. d4 {[%clk 0:02:58.9]} 2...
Nf6 {[%clk 0:03:00.6]} 3. Nc3 {[%clk 0:02:59]} 3... g6 {[%clk 0:03:00.9]} 4. Be2
{[%clk 0:02:57.5]} 4... Bg7 {[%clk 0:03:00.6]} 5. h4 {[%clk 0:02:57.6]} 5... c5
{[%clk 0:03:00.5]} 6. dxc5 {[%clk 0:02:56.3]} 6... Qa5 {[%clk 0:03:00.3]} 7. Bd2
{[%clk 0:02:50.9]} 7... Qxc5 {[%clk 0:02:58.7]} 8. h5 {[%clk 0:02:51.2]} 8...
Nxh5 {[%clk 0:02:58.8]} 9. Bxh5 {[%clk 0:02:50.2]} 9... gxh5 {[%clk 0:02:51.3]}
10. Rxh5 {[%clk 0:02:48.4]} 10... Qc6 {[%clk 0:02:34.8]} 11. Nge2 {[%clk
0:02:42.5]} 11... Nd7 {[%clk 0:02:23.1]} 12. Rg5 {[%clk 0:02:27.2]} 12... Bf6
{[%clk 0:02:09.6]} 13. Rg3 {[%clk 0:02:27.3]} 13... Nb6 {[%clk 0:02:07.3]} 14.
Bg5 {[%clk 0:02:24.8]} 14... Bxg5 {[%clk 0:01:57.4]} 15. Rxg5 {[%clk 0:02:24.3]}
15... Be6 {[%clk 0:01:58]} 16. Nd4 {[%clk 0:02:11.7]} 16... Qc4 {[%clk
0:01:56.6]} 17. Qd3 {[%clk 0:02:11.6]} 17... Rc8 {[%clk 0:01:53.4]} 18. O-O-O
{[%clk 0:02:05.5]} 18... Qxd3 {[%clk 0:01:32.1]} 19. cxd3 {[%clk 0:02:04.9]}
19... h6 {[%clk 0:01:20]} 20. Ra5 {[%clk 0:02:01.1]} 20... a6 {[%clk 0:01:17.3]}
21. Kd2 {[%clk 0:02:00.4]} 21... Kd7 {[%clk 0:01:09.6]} 22. Rh1 {[%clk
0:01:48.9]} 22... Rcg8 {[%clk 0:01:07.8]} 23. g3 {[%clk 0:01:47.9]} 23... Rg6
{[%clk 0:01:02.1]} 24. Rah5 {[%clk 0:01:47.2]} 24... Bg4 {[%clk 0:00:42.6]} 25.
R5h4 {[%clk 0:01:47.1]} 25... e5 {[%clk 0:00:43]} 26. Nc2 {[%clk 0:01:43.7]}
26... h5 {[%clk 0:00:38.2]} 27. Ne3 {[%clk 0:01:33.2]} 27... Rhg8 {[%clk
0:00:37.8]} 28. R1h2 {[%clk 0:01:25]} 28... Rf6 {[%clk 0:00:36.1]} 29. b3 {[%clk
0:01:13.3]} 29... Rf3 {[%clk 0:00:31.1]} 30. Nxg4 {[%clk 0:01:04.2]} 30... hxg4
{[%clk 0:00:30.1]} 31. Rh6 {[%clk 0:01:02.2]} 31... Ke7 {[%clk 0:00:29.4]} 32.
Nd1 {[%clk 0:01:00.9]} 32... Nd7 {[%clk 0:00:21.7]} 33. Ne3 {[%clk 0:01:01]}
33... Nc5 {[%clk 0:00:22.2]} 34. Nf5+ {[%clk 0:00:59]} 34... Kd7 {[%clk
0:00:21]} 35. Rxd6+ {[%clk 0:00:58.4]} 35... Kc7 {[%clk 0:00:21.7]} 36. Rd5
{[%clk 0:00:58.1]} 36... b6 {[%clk 0:00:21]} 37. Ke2 {[%clk 0:00:55.1]} 37...
Ne6 {[%clk 0:00:18.3]} 38. Rh7 {[%clk 0:00:52.7]} 38... Ng5 {[%clk 0:00:15.3]}
39. Rh2 {[%clk 0:00:48.9]} 39... Rd8 {[%clk 0:00:13.8]} 40. Rxd8 {[%clk
0:00:47.2]} 40... Kxd8 {[%clk 0:00:14.7]} 41. Ne3 {[%clk 0:00:47.6]} 41... Ne6
{[%clk 0:00:15]} 42. Nxg4 {[%clk 0:00:46.3]} 42... Nd4+ {[%clk 0:00:15.3]} 43.
Kd2 {[%clk 0:00:45.4]} 43... Ke7 {[%clk 0:00:15.1]} 44. Nxe5 {[%clk 0:00:43.7]}
44... Rf6 {[%clk 0:00:14.3]} 45. f4 {[%clk 0:00:43.6]} 45... Re6 {[%clk
0:00:13.8]} 46. Rh7 {[%clk 0:00:42.4]} 46... Rf6 {[%clk 0:00:11.8]} 47. f5
{[%clk 0:00:41.7]} 47... Kd6 {[%clk 0:00:10.2]} 48. Nxf7+ {[%clk 0:00:41.5]}
48... Kc5 {[%clk 0:00:11]} 49. Ne5 {[%clk 0:00:41.7]} 49... Kb4 {[%clk
0:00:10.1]} 50. Rc7 {[%clk 0:00:38.8]} 50... Rd6 {[%clk 0:00:09]} 51. Ke3 {[%clk
0:00:37.4]} 51... Ka3 {[%clk 0:00:08.1]} 52. Nc4+ {[%clk 0:00:35.6]} 1-0